fUST/lending_fUST_20240906
["ID","MTS","AMOUNT","RATE_DAILY","PERIOD"]
[337326136,1725603064135,-878.94,0.00021409,2]
[337326137,1725603064147,-500.0,0.00021409,2]
[337326138,1725603064156,-881.97,0.00021409,2]
[337326139,1725603064165,-1540.13,0.00021409,2]
[337326140,1725603064175,-938.2,0.00021409,2]
[337326141,1725603064185,-1349.8,0.00021409,2]
[337326142,1725603064194,-500.0,0.00021409,2]
[337326143,1725603064203,-24775.49,0.00021409,2]
[337326144,1725603064213,-905.47,0.00021409,2]
[337326145,1725603064223,-1153.75,0.00021409,2]
[337326146,1725603064233,-1020.9,0.00021409,2]
[337326147,1725603064243,-1242.45,0.00021409,2]
[337326148,1725603064253,-500.0,0.00021409,2]
[337326149,1725603064263,-677.65,0.00021409,2]
[337326150,1725603064272,-2039.31,0.00021409,2]
[337326151,1725603064282,-500.0,0.00021409,2]
[337326152,1725603064292,-2650.81,0.00021409,2]
[337326153,1725603064302,-500.0,0.00021409,2]
[337326154,1725603064312,-500.0,0.00021409,2]
[337326155,1725603064323,-500.0,0.00021409,2]
[337326156,1725603064334,-500.0,0.00021409,2]
[337326157,1725603064344,-500.0,0.00021409,2]
[337326158,1725603064355,-1129.76,0.00021409,2]
[337326159,1725603064364,-1211.83,0.00021409,2]
[337326160,1725603064374,-1277.93,0.00021409,2]
[337326161,1725603064384,-699.45,0.00021409,2]
[337326162,1725603064401,-500.0,0.00021409,2]
[337326163,1725603064412,-500.0,0.00021409,2]
[337326164,1725603064421,-500.0,0.00021409,2]
[337326165,1725603064432,-58386.62,0.00021409,2]
[337326166,1725603064442,-6862.6253166,0.00021419,15]
[337326167,1725603064457,-338.88267122,0.00021419,15]
[337326168,1725603064698,-319.87233744,0.00020039,2]
[337326170,1725603129144,-300.0,0.00020028,2]
[337326171,1725603129164,-300.0,0.00020029,2]
[337326172,1725603129176,-200.0,0.00020029,2]
[337326173,1725603129185,-12.0,0.00020029,2]
[337326174,1725603145769,2111.05966344,0.00019929,2]
[337326175,1725603210396,1439.7628597,0.00019039,2]
[337326176,1725603213911,170.82571,0.00019182,2]
[337326193,1725603309321,150.112233,0.0002,3]
[337326194,1725603309457,150.112233,0.0002,4]
[337326195,1725603309775,150.112233,0.0002,5]
[337326196,1725603310118,150.112233,0.0002,4]
[337326197,1725603310482,150.112233,0.0002,5]
[337326198,1725603310888,150.112233,0.0002,2]
[337326199,1725603311249,150.112233,0.0002,3]
[337326200,1725603311641,150.112233,0.0002,3]
[337326201,1725603311978,253.782591,0.0002,2]
[337326202,1725603407470,169.10618491,0.00019929,2]
[337326203,1725603409551,169.1061849,0.00019948,2]
[337326204,1725603440195,1000.0,0.0002001,2]
[337326205,1725603451300,1000.0,0.00025,60]
[337326206,1725603479562,1107.0,0.00027,120]
[337326207,1725603495151,901.44035739,0.00019948,2]
[337326208,1725603576163,1847.17720551,0.00019919,2]
[337326210,1725603766406,1616.28005483,0.00019918,2]
[337326211,1725603885781,811.29632166,0.00019918,2]
[337326213,1725603951908,1414.24504795,0.00019918,2]
[337326215,1725604096608,280551.143438,0.00020008,2]
[337326216,1725604099307,142168.756272,0.00020008,2]
[337326219,1725604142254,1237.46441693,0.00019918,2]
[337326252,1725604232149,-300.0,0.00020016,2]
[337326253,1725604232160,-1000.7,0.00020017,2]
[337326254,1725604232172,-359.27,0.00020017,2]
[337326255,1725604232182,-500.0,0.00020017,2]
[337326256,1725604232191,-1071.53,0.00020017,2]
[337326257,1725604232201,-510.69,0.00020017,2]
[337326258,1725604232211,-500.0,0.00020017,2]
[337326259,1725604232220,-500.0,0.00020017,2]
[337326260,1725604232230,-7287.96,0.00020017,2]
[337326261,1725604232239,-544.61,0.00020017,2]
[337326262,1725604232249,-1517.78,0.00020017,2]
[337326263,1725604232260,-500.0,0.00020017,2]
[337326264,1725604232269,-1810.71,0.00020017,2]
[337326265,1725604232279,-1262.41,0.00020017,2]
[337326266,1725604232289,-807.29,0.00020017,2]
[337326267,1725604232299,-500.0,0.00020017,2]
[337326268,1725604232309,-500.0,0.00020017,2]
[337326269,1725604232319,-714.04,0.00020017,2]
[337326270,1725604232328,-500.0,0.00020017,2]
[337326271,1725604232337,-500.0,0.00020017,2]
[337326272,1725604232355,-500.0,0.00020017,2]
[337326273,1725604232365,-500.0,0.00020017,2]
[337326274,1725604232374,-500.0,0.00020017,2]
[337326275,1725604232384,-500.0,0.00020017,2]
[337326276,1725604232393,-500.0,0.00020017,2]
[337326277,1725604232402,-500.0,0.00020017,2]
[337326278,1725604232411,-500.0,0.00020017,2]
[337326279,1725604232420,-500.0,0.00020017,2]
[337326280,1725604232429,-500.0,0.00020017,2]
[337326281,1725604232438,-500.0,0.00020017,2]
[337326282,1725604232448,-500.0,0.00020017,2]
[337326283,1725604232458,-500.0,0.00020017,2]
[337326284,1725604232467,-500.0,0.00020017,2]
[337326285,1725604232477,-500.0,0.00020017,2]
[337326286,1725604232487,-500.0,0.00020017,2]
[337326287,1725604232496,-504.59190074,0.00020017,2]
[337326288,1725604232506,-2424.19,0.00020017,2]
[337326289,1725604232521,-496.0956737,0.00020018,2]
[337326290,1725604232531,-500.0,0.00020018,2]
[337326291,1725604232540,-500.0,0.00020018,2]
[337326292,1725604232550,-500.0,0.00020018,2]
[337326293,1725604232560,-500.0,0.00020018,2]
[337326294,1725604232570,-500.0,0.00020018,2]
[337326295,1725604232580,-500.0,0.00020018,2]
[337326296,1725604232592,-758.49,0.00020018,2]
[337326297,1725604232602,-510.20392385,0.00020018,2]
[337326298,1725604232612,-526.06,0.00020018,2]
[337326299,1725604232622,-500.0,0.00020018,2]
[337326300,1725604232632,-607.59,0.00020018,2]
[337326301,1725604232641,-323.22107093,0.00020018,2]
[337326302,1725604232651,-500.0,0.00020018,2]
[337326303,1725604232661,-500.0,0.00020018,2]
[337326304,1725604232671,-500.0,0.00020018,2]
[337326305,1725604232680,-500.0,0.00020018,2]
[337326306,1725604232691,-500.0,0.00020018,2]
[337326307,1725604232701,-227.08039559,0.00020018,2]
[337326308,1725604232711,-500.0,0.00020018,2]
[337326309,1725604232721,-606.94,0.00020018,2]
[337326310,1725604232731,-505.87546954,0.00020018,2]
[337326311,1725604232740,-504.82884184,0.00020018,2]
[337326312,1725604232751,-504.83075436,0.00020018,2]
[337326313,1725604232764,-79.04841959,0.00020018,2]
[337326314,1725604232777,-420.95158041,0.00020018,2]
[337326315,1725604232787,-79.0003835,0.00020018,2]
[337326316,1725604232799,-420.9996165,0.00020018,2]
[337326317,1725604232808,-257.57498817,0.00020018,2]
[337326318,1725604232825,-500.0,0.00020017,2]
[337326319,1725604232836,-9.88363036,0.00020018,2]
[337326320,1725604232847,-52.76636964,0.00020018,2]
[337326324,1725604238517,-504.72331796,0.00020017,2]
[337326325,1725604238527,-500.0,0.00020017,2]
[337326326,1725604238537,-828.13363036,0.00020018,2]
[337326327,1725604238546,-500.0,0.00020018,2]
[337326328,1725604238555,-500.0,0.00020018,2]
[337326329,1725604238564,-500.0,0.00020018,2]
[337326330,1725604238573,-500.0,0.00020018,2]
[337326331,1725604238582,-500.0,0.00020018,2]
[337326332,1725604238591,-500.0,0.00020018,2]
[337326333,1725604238602,-500.0,0.00020018,2]
[337326334,1725604238612,-500.0,0.00020018,2]
[337326335,1725604238621,-500.0,0.00020018,2]
[337326336,1725604238630,-500.0,0.00020018,2]
[337326337,1725604238640,-500.0,0.00020018,2]
[337326338,1725604238650,-500.0,0.00020018,2]
[337326339,1725604238659,-500.0,0.00020018,2]
[337326340,1725604238669,-589.48,0.00020018,2]
[337326341,1725604238678,-500.0,0.00020018,2]
[337326342,1725604238688,-500.0,0.00020018,2]
[337326343,1725604238698,-500.0,0.00020018,2]
[337326344,1725604238708,-500.0,0.00020018,2]
[337326345,1725604238718,-723.56,0.00020018,2]
[337326346,1725604238728,-1609.01,0.00020018,2]
[337326347,1725604238737,-1609.01,0.00020018,2]
[337326348,1725604238747,-1609.01,0.00020018,2]
[337326349,1725604238756,-1609.01,0.00020018,2]
[337326350,1725604238769,-1609.01,0.00020018,2]
[337326351,1725604238779,-1609.01,0.00020018,2]
[337326352,1725604238788,-1609.01,0.00020018,2]
[337326353,1725604238799,-1609.01,0.00020018,2]
[337326354,1725604238809,-807.49,0.00020018,2]
[337326355,1725604238818,-500.0,0.00020018,2]
[337326356,1725604238827,-179.86031609,0.00020018,2]
[337326357,1725604238837,-500.0,0.00020018,2]
[337326358,1725604238848,-500.0,0.00020018,2]
[337326359,1725604238858,-500.0,0.00020018,2]
[337326360,1725604238867,-500.0,0.00020018,2]
[337326361,1725604238877,-501.98512959,0.00020018,2]
[337326362,1725604238886,-500.0,0.00020018,2]
[337326363,1725604238896,-536.6517579,0.00020018,2]
[337326364,1725604238906,-500.0,0.00020018,2]
[337326365,1725604238915,-502.99532719,0.00020018,2]
[337326366,1725604238924,-500.0,0.00020018,2]
[337326367,1725604238934,-1376.04,0.00020018,2]
[337326368,1725604238943,-500.0,0.00020018,2]
[337326369,1725604238953,-500.0,0.00020018,2]
[337326370,1725604238962,-500.0,0.00020018,2]
[337326371,1725604238972,-500.0,0.00020018,2]
[337326372,1725604238981,-500.0,0.00020018,2]
[337326373,1725604238991,-1067.79,0.00020018,2]
[337326374,1725604238999,-500.0,0.00020018,2]
[337326375,1725604239009,-516.67,0.00020018,2]
[337326376,1725604239019,-1464.8,0.00020018,2]
[337326377,1725604239028,-1000.0,0.00020018,2]
[337326378,1725604239037,-556.96049972,0.00020018,2]
[337326379,1725604239047,-902.24,0.00020018,2]
[337326380,1725604239056,-902.24,0.00020018,2]
[337326381,1725604239065,-902.24,0.00020018,2]
[337326382,1725604239074,-500.0,0.00020018,2]
[337326383,1725604239084,-902.24,0.00020018,2]
[337326384,1725604239093,-902.24,0.00020018,2]
[337326385,1725604239114,-902.24,0.00020018,2]
[337326386,1725604239123,-902.24,0.00020018,2]
[337326387,1725604239133,-902.24,0.00020018,2]
[337326388,1725604239142,-500.0,0.00020018,2]
[337326389,1725604239151,-500.0,0.00020018,2]
[337326390,1725604239161,-810.07,0.00020018,2]
[337326391,1725604239171,-43789.96,0.00020018,2]
[337326392,1725604239180,-905.11,0.00020018,2]
[337326393,1725604239189,-500.0,0.00020018,2]
[337326394,1725604239199,-545.34102415,0.00020018,2]
[337326395,1725604239208,-500.0,0.00020018,2]
[337326396,1725604239217,-500.0,0.00020018,2]
[337326397,1725604239227,-500.0,0.00020018,2]
[337326398,1725604239236,-863.57,0.00020018,2]
[337326399,1725604239246,-1239.76,0.00020018,2]
[337326400,1725604239255,-599.34527015,0.00020018,2]
[337326401,1725604239265,-501.38495613,0.00020018,2]
[337326402,1725604239274,-500.0,0.00020018,2]
[337326403,1725604239284,-508.42645339,0.00020018,2]
[337326404,1725604239295,-500.0,0.00020018,2]
[337326405,1725604239304,-500.0,0.00020018,2]
[337326406,1725604239314,-500.0,0.00020018,2]
[337326407,1725604239323,-500.0,0.00020018,2]
[337326408,1725604239332,-500.0,0.00020018,2]
[337326409,1725604239342,-1006.21,0.00020018,2]
[337326410,1725604239353,-500.0,0.00020018,2]
[337326411,1725604239362,-500.0,0.00020018,2]
[337326412,1725604239371,-22804.71,0.00020018,2]
[337326413,1725604239381,-831.65,0.00020018,2]
[337326414,1725604239390,-1059.7,0.00020018,2]
[337326415,1725604239399,-500.0,0.00020018,2]
[337326416,1725604239408,-7245.79,0.00020018,2]
[337326417,1725604239418,-500.0,0.00020018,2]
[337326418,1725604239427,-500.0,0.00020018,2]
[337326419,1725604239436,-500.0,0.00020018,2]
[337326420,1725604239446,-1296.55,0.00020018,2]
[337326421,1725604239456,-500.0,0.00020018,2]
[337326422,1725604239466,-937.68,0.00020018,2]
[337326423,1725604239475,-1141.17,0.00020018,2]
[337326424,1725604239485,-1240.31,0.00020018,2]
[337326425,1725604239494,-1306.01,0.00020018,2]
[337326426,1725604239503,-500.0,0.00020018,2]
[337326427,1725604239513,-1288.1,0.00020018,2]
[337326428,1725604239523,-500.0,0.00020018,2]
[337326429,1725604239532,-500.0,0.00020018,2]
[337326430,1725604239542,-1780.78,0.00020018,2]
[337326431,1725604239552,-500.0,0.00020018,2]
[337326432,1725604239562,-500.0,0.00020018,2]
[337326433,1725604239572,-622.4,0.00020018,2]
[337326434,1725604239582,-500.0,0.00020018,2]
[337326435,1725604239592,-500.0,0.00020018,2]
[337326436,1725604239602,-1873.06,0.00020018,2]
[337326437,1725604239613,-500.0,0.00020018,2]
[337326438,1725604239623,-500.0,0.00020018,2]
[337326439,1725604239632,-500.0,0.00020018,2]
[337326440,1725604239642,-500.0,0.00020018,2]
[337326441,1725604239651,-500.0,0.00020018,2]
[337326442,1725604239661,-2434.71,0.00020018,2]
[337326443,1725604239671,-837.63,0.00020018,2]
[337326444,1725604239680,-500.0,0.00020018,2]
[337326445,1725604239690,-507.94366552,0.00020018,2]
[337326446,1725604239699,-500.0,0.00020018,2]
[337326447,1725604239709,-500.0,0.00020018,2]
[337326448,1725604239719,-500.0,0.00020018,2]
[337326449,1725604239729,-525.68,0.00020018,2]
[337326450,1725604239739,-500.0,0.00020018,2]
[337326451,1725604239748,-500.0,0.00020018,2]
[337326452,1725604239759,-500.0,0.00020018,2]
[337326454,1725604239771,-500.0,0.00020018,2]
[337326455,1725604239780,-500.0,0.00020018,2]
[337326456,1725604239790,-500.0,0.00020018,2]
[337326457,1725604239800,-500.0,0.00020018,2]
[337326458,1725604239810,-500.0,0.00020018,2]
[337326459,1725604239820,-500.0,0.00020018,2]
[337326460,1725604239830,-500.0,0.00020018,2]
[337326461,1725604239841,-500.0,0.00020018,2]
[337326462,1725604239852,-500.0,0.00020018,2]
[337326463,1725604239862,-500.0,0.00020018,2]
[337326464,1725604239871,-576.81,0.00020018,2]
[337326465,1725604239881,-500.0,0.00020018,2]
[337326466,1725604239890,-500.0,0.00020018,2]
[337326467,1725604239899,-500.0,0.00020018,2]
[337326468,1725604239910,-500.0,0.00020018,2]
[337326469,1725604239919,-501.52655575,0.00020018,2]
[337326470,1725604239929,-500.0,0.00020018,2]
[337326471,1725604239938,-988.54,0.00020018,2]
[337326472,1725604239948,-500.0,0.00020018,2]
[337326473,1725604239958,-615.92,0.00020018,2]
[337326475,1725604239968,-500.0,0.00020018,2]
[337326476,1725604239977,-1060.35,0.00020018,2]
[337326477,1725604239987,-599.96,0.00020018,2]
[337326478,1725604239996,-500.0,0.00020018,2]
[337326479,1725604240006,-1118.19,0.00020018,2]
[337326480,1725604240015,-500.0,0.00020018,2]
[337326481,1725604240024,-500.0,0.00020018,2]
[337326482,1725604240035,-500.0,0.00020018,2]
[337326483,1725604240044,-2193.04,0.00020018,2]
[337326484,1725604240054,-500.0,0.00020018,2]
[337326485,1725604240064,-500.0,0.00020018,2]
[337326486,1725604240074,-612.02,0.00020018,2]
[337326487,1725604240083,-106401.02,0.00020018,2]
[337326488,1725604240093,-500.0,0.00020018,2]
[337326489,1725604240106,-500.0,0.00020018,2]
[337326490,1725604240115,-500.0,0.00020018,2]
[337326491,1725604240125,-1503.83,0.00020018,2]
[337326492,1725604240135,-500.0,0.00020018,2]
[337326493,1725604240144,-500.0,0.00020018,2]
[337326494,1725604240153,-500.0,0.00020018,2]
[337326495,1725604240162,-500.0,0.00020018,2]
[337326496,1725604240172,-1609.01,0.00020027,2]
[337326497,1725604240181,-902.24,0.00020027,2]
[337326498,1725604240191,-500.0,0.00020027,2]
[337326499,1725604240201,-24483.20432029,0.00020028,15]
[337326500,1725604240212,-500.0,0.00020028,2]
[337326501,1725604240221,-500.0,0.00020028,2]
[337326502,1725604240231,-508.0248532,0.00020028,2]
[337326504,1725604240240,-500.0,0.00020028,2]
[337326506,1725604240250,-506.6142616,0.00020028,2]
[337326508,1725604240259,-500.0,0.00020028,2]
[337326509,1725604240269,-500.0,0.00020028,2]
[337326510,1725604240279,-500.0,0.00020028,2]
[337326511,1725604240289,-500.0,0.00020028,2]
[337326512,1725604240299,-500.0,0.00020028,2]
[337326513,1725604240309,-500.0,0.00020028,2]
[337326514,1725604240319,-500.0,0.00020028,2]
[337326515,1725604240328,-500.0,0.00020028,2]
[337326516,1725604240337,-500.0,0.00020028,2]
[337326517,1725604240348,-500.0,0.00020028,2]
[337326518,1725604240357,-505.20370428,0.00020028,2]
[337326519,1725604240366,-500.0,0.00020028,2]
[337326520,1725604240375,-245.65856709,0.00020028,2]
[337326521,1725604240385,-504.11238847,0.00020028,2]
[337326522,1725604240394,-500.0,0.00020028,2]
[337326523,1725604240403,-500.0,0.00020028,2]
[337326524,1725604240413,-500.0,0.00020028,2]
[337326525,1725604240422,-500.0,0.00020028,2]
[337326526,1725604240431,-500.0,0.00020028,2]
[337326527,1725604240440,-500.0,0.00020028,2]
[337326528,1725604240449,-500.0,0.00020028,2]
[337326529,1725604240458,-500.0,0.00020028,2]
[337326530,1725604240468,-500.0,0.00020028,2]
[337326531,1725604240477,-500.0,0.00020028,2]
[337326532,1725604240487,-556.38908231,0.00020028,2]
[337326533,1725604240496,-500.0,0.00020028,2]
[337326534,1725604240506,-500.0,0.00020028,2]
[337326535,1725604240516,-500.0,0.00020028,2]
[337326536,1725604240525,-500.0,0.00020028,2]
[337326537,1725604240534,-500.0,0.00020028,2]
[337326538,1725604240543,-500.0,0.00020028,2]
[337326539,1725604240553,-500.0,0.00020028,2]
[337326540,1725604240562,-500.0,0.00020028,2]
[337326541,1725604240572,-500.0,0.00020028,2]
[337326542,1725604240581,-500.0,0.00020028,2]
[337326543,1725604240590,-500.0,0.00020028,2]
[337326544,1725604240601,-501.21870796,0.00020028,2]
[337326545,1725604240610,-592.54,0.00020028,2]
[337326546,1725604240620,-501.20202361,0.00020028,2]
[337326547,1725604240630,-500.0,0.00020028,2]
[337326548,1725604240638,-500.0,0.00020028,2]
[337326549,1725604240648,-500.0,0.00020028,2]
[337326550,1725604240657,-200.0,0.00020028,2]
[337326551,1725604240666,-500.0,0.00020028,2]
[337326552,1725604240675,-500.0,0.00020028,2]
[337326553,1725604240685,-500.0,0.00020028,2]
[337326554,1725604240694,-500.0,0.00020028,2]
[337326555,1725604240703,-765.66,0.00020028,2]
[337326556,1725604240712,-502.29240269,0.00020028,2]
[337326557,1725604240721,-500.0,0.00020028,2]
[337326558,1725604240731,-500.0,0.00020028,2]
[337326559,1725604240740,-500.0,0.00020028,2]
[337326560,1725604240749,-500.0,0.00020028,2]
[337326561,1725604240763,-500.0,0.00020028,2]
[337326562,1725604240773,-500.0,0.00020028,2]
[337326563,1725604240782,-500.0,0.00020028,2]
[337326564,1725604240792,-500.0,0.00020028,2]
[337326565,1725604240801,-500.0,0.00020028,2]
[337326566,1725604240810,-500.0,0.00020028,2]
[337326567,1725604240978,-500.0,0.00020028,2]
[337326568,1725604240989,-339.49052472,0.00020028,2]
[337326569,1725604240998,-500.0,0.00020028,2]
[337326570,1725604241007,-500.0,0.00020028,2]
[337326571,1725604241017,-500.0,0.00020028,2]
[337326572,1725604241026,-500.0,0.00020028,2]
[337326573,1725604241035,-500.0,0.00020028,2]
[337326574,1725604241045,-500.0,0.00020028,2]
[337326575,1725604241054,-500.0,0.00020028,2]
[337326576,1725604241064,-500.0,0.00020028,2]
[337326577,1725604241074,-500.0,0.00020028,2]
[337326578,1725604241083,-500.0,0.00020028,2]
[337326579,1725604241092,-500.0,0.00020028,2]
[337326580,1725604241101,-500.0,0.00020028,2]
[337326581,1725604241110,-497.45234945,0.00020028,2]
[337326582,1725604241120,-503.79987053,0.00020028,2]
[337326583,1725604241129,-500.0,0.00020028,2]
[337326584,1725604241138,-500.0,0.00020028,2]
[337326585,1725604241147,-500.0,0.00020028,2]
[337326586,1725604241156,-500.0,0.00020028,2]
[337326587,1725604241165,-500.0,0.00020028,2]
[337326588,1725604241174,-205.88130588,0.00020028,2]
[337326589,1725604241184,-500.0,0.00020028,2]
[337326590,1725604241194,-500.0,0.00020028,2]
[337326591,1725604241203,-500.0,0.00020028,2]
[337326592,1725604241212,-500.0,0.00020028,2]
[337326593,1725604241222,-500.0,0.00020028,2]
[337326594,1725604241231,-500.0,0.00020028,2]
[337326595,1725604241241,-500.0,0.00020028,2]
[337326596,1725604241250,-500.0,0.00020028,2]
[337326597,1725604241259,-500.0,0.00020028,2]
[337326598,1725604241268,-500.0,0.00020028,2]
[337326599,1725604241277,-500.0,0.00020028,2]
[337326600,1725604241287,-500.0,0.00020028,2]
[337326601,1725604241296,-446.31496396,0.00020028,2]
[337326602,1725604241306,-506.86431605,0.00020028,2]
[337326603,1725604241316,-500.0,0.00020028,2]
[337326604,1725604241325,-500.0,0.00020028,2]
[337326605,1725604241334,-500.0,0.00020028,2]
[337326606,1725604241343,-500.0,0.00020028,2]
[337326607,1725604241354,-500.0,0.00020028,2]
[337326608,1725604241363,-266.40351585,0.00020028,2]
[337326609,1725604241372,-533.15232506,0.00020028,2]
[337326610,1725604241382,-566.11362618,0.00020028,2]
[337326611,1725604241392,-500.0,0.00020028,2]
[337326612,1725604241401,-500.0,0.00020028,2]
[337326613,1725604241411,-549.27280169,0.00020028,2]
[337326614,1725604241420,-500.0,0.00020028,2]
[337326615,1725604241430,-500.0,0.00020028,2]
[337326616,1725604241439,-500.0,0.00020028,2]
[337326617,1725604241448,-500.0,0.00020028,2]
[337326618,1725604241457,-500.0,0.00020028,2]
[337326619,1725604241467,-500.0,0.00020028,2]
[337326620,1725604241478,-503.43562316,0.00020028,2]
[337326621,1725604241487,-500.0,0.00020028,2]
[337326622,1725604241497,-500.0,0.00020028,2]
[337326623,1725604241507,-500.0,0.00020028,2]
[337326624,1725604241517,-500.0,0.00020028,2]
[337326625,1725604241527,-500.0,0.00020028,2]
[337326626,1725604241537,-500.0,0.00020028,2]
[337326627,1725604241547,-500.0,0.00020028,2]
[337326628,1725604241556,-500.0,0.00020028,2]
[337326629,1725604241566,-500.0,0.00020028,2]
[337326630,1725604241576,-500.0,0.00020028,2]
[337326631,1725604241585,-500.0,0.00020028,2]
[337326632,1725604241595,-502.68234244,0.00020028,2]
[337326633,1725604241605,-500.0,0.00020028,2]
[337326634,1725604241614,-500.0,0.00020028,2]
[337326635,1725604241624,-500.0,0.00020028,2]
[337326636,1725604241634,-500.0,0.00020028,2]
[337326637,1725604241644,-500.0,0.00020028,2]
[337326638,1725604241653,-504.20909952,0.00020028,2]
[337326639,1725604241662,-570.08836598,0.00020028,2]
[337326640,1725604241672,-1492.96,0.00020028,2]
[337326641,1725604241682,-500.0,0.00020028,2]
[337326642,1725604241691,-506.51122015,0.00020028,2]
[337326643,1725604241701,-674.67,0.00020028,2]
[337326644,1725604241710,-500.0,0.00020028,2]
[337326645,1725604241719,-500.0,0.00020028,2]
[337326646,1725604241730,-500.0,0.00020028,2]
[337326647,1725604241739,-500.0,0.00020028,2]
[337326648,1725604241749,-500.0,0.00020028,2]
[337326649,1725604241759,-500.0,0.00020028,2]
[337326650,1725604241772,-500.0,0.00020028,2]
[337326651,1725604241782,-500.0,0.00020028,2]
[337326652,1725604241792,-500.0,0.00020028,2]
[337326653,1725604241802,-228.27788354,0.00020028,2]
[337326654,1725604241811,-500.0,0.00020028,2]
[337326655,1725604241820,-500.0,0.00020028,2]
[337326656,1725604241830,-500.0,0.00020028,2]
[337326657,1725604241839,-508.76110611,0.00020028,2]
[337326658,1725604241849,-500.0,0.00020028,2]
[337326659,1725604241859,-500.0,0.00020028,2]
[337326660,1725604241868,-500.0,0.00020028,2]
[337326661,1725604241878,-500.0,0.00020028,2]
[337326662,1725604241888,-453.07159456,0.00020028,2]
[337326663,1725604241898,-507.31900406,0.00020028,2]
[337326664,1725604241907,-500.0,0.00020028,2]
[337326665,1725604241917,-502.68727343,0.00020028,2]
[337326666,1725604241926,-500.0,0.00020028,2]
[337326667,1725604241935,-500.0,0.00020028,2]
[337326668,1725604241945,-500.0,0.00020028,2]
[337326669,1725604241954,-500.0,0.00020028,2]
[337326670,1725604241964,-500.0,0.00020028,2]
[337326671,1725604241973,-500.0,0.00020028,2]
[337326672,1725604241983,-500.0,0.00020028,2]
[337326673,1725604241993,-500.0,0.00020028,2]
[337326674,1725604242002,-194.88567698,0.00020028,2]
[337326675,1725604242012,-500.0,0.00020028,2]
[337326676,1725604242021,-500.0,0.00020028,2]
[337326677,1725604242031,-500.0,0.00020028,2]
[337326678,1725604242041,-500.0,0.00020028,2]
[337326679,1725604242051,-500.0,0.00020028,2]
[337326680,1725604242060,-500.0,0.00020028,2]
[337326681,1725604242069,-500.0,0.00020028,2]
[337326682,1725604242079,-500.0,0.00020028,2]
[337326683,1725604242089,-500.0,0.00020028,2]
[337326684,1725604242099,-339.18703988,0.00020028,2]
[337326685,1725604242108,-500.0,0.00020028,2]
[337326686,1725604242117,-500.0,0.00020028,2]
[337326687,1725604242127,-509.05,0.00020028,2]
[337326688,1725604242136,-549.85,0.00020028,2]
[337326689,1725604242145,-500.0,0.00020028,2]
[337326690,1725604242155,-500.0,0.00020028,2]
[337326691,1725604242164,-508.26635974,0.00020028,2]
[337326692,1725604242173,-500.0,0.00020028,2]
[337326693,1725604242183,-500.0,0.00020028,2]
[337326694,1725604242192,-500.0,0.00020028,2]
[337326695,1725604242203,-500.0,0.00020028,2]
[337326696,1725604242212,-500.0,0.00020028,2]
[337326697,1725604242221,-522.94332566,0.00020028,2]